Workbook

Sheet Main
A1: Acetone Cracking PFR with Counter-current Heat Exchange | H1: Rgas | I1: 8.314 | J1: kJ/kgmol/K | K1: NoSteps | L1: 200 | N1: TAirError | O1: =TAirF-I2012 -> 7.513563105e-09
A2: 2019-09-23 | H2: MWA | I2: 58.08 | J2: kg/kgmol | K2: dV | L2: 1e-06 | N2: Use Solver to drive this to zero | W2: Acetone | X2: Ketene | Y2: Methane | Z2: Air | AA2: HtRxn
A3: Reactor Specifications | D3: Heat Transfer | H3: MWAir | I3: 28.96 | J3: kg/kgmol | V3: 800 | W3: =CpA(V3) -> 147.47112 | X3: =CpK(V3) -> 78.6908368 | Y3: =CpM(V3) -> 62.92701147 | Z3: =CpAir(V3) -> 31.72728 | AA3: =HtRxn(V3) -> 80790.7631
A4: NoTubes | B4: 1000 | D4: A | E4: =4/TubeID -> 149.8127341 | F4: m2/m3 | K4: Air Feed | N4: Reaction Kinetics | Q4: Heats of Formation | V4: 900 | W4: =CpA(V4) -> 156.30644 | X4: =CpK(V4) -> 81.8652708 | Y4: =CpM(V4) -> 67.59577632 | Z4: =CpAir(V4) -> 32.313205 | AA4: =HtRxn(V4) -> 80152.1315
A5: TotalVolume | B5: 2 | C5: m3 | D5: U | E5: 400 | F5: kJ/m2/hr/K | H5: Acetone Feed | K5: MassFeedAir | L5: =8*11088 -> 88704 | M5: kg/hr | N5: lnk0 | O5: 42.529 | Q5: HfA | R5: -216670 | S5: kJ/kgmol | V5: 1000 | W5: 163.8932 | X5: 84.653 | Y5: 71.794054 | Z5: 32.889 | AA5: 79434.75051
A6: VolPerTube | B6: =TotalVolume/NoTubes -> 0.002 | C6: m3 | H6: MassFeedA | I6: 7850 | J6: kg/hr | K6: FAirM | L6: =MassFeedAir/NoTubes -> 88.704 | M6: kg/hr per tube | N6: k0 | O6: =EXP(lnk0) -> 2.951956958e+18 | P6: 1/hr | Q6: HfK | R6: -61090 | V6: 1100 | W6: 170.43996 | X6: 87.1314268 | Y6: 75.53506965 | Z6: 33.442875 | AA6: 78672.04542
A7: TubeID | B7: 0.0267 | C7: m3 | D7: Feed Conditions | H7: FAM | I7: =MassFeedA/NoTubes -> 7.85 | J7: kg/hr per tube | K7: FAir | L7: =FAirM/MWAir -> 3.062983425 | M7: kgmol/hr | N7: E | O7: 284522 | P7: kJ/kgmol | Q7: HfM | R7: -74810 | V7: 1200 | W7: 176.15528 | X7: 89.3440848 | Y7: 78.84079356 | Z7: 33.96304 | AA7: 77884.43642
A8: TubeXC | B8: =PI()*TubeID^2/4 -> 0.0005599024967 | C8: m2 | D8: TF | E8: 1035 | F8: K | H8: FAF | I8: =FAM/MWA -> 0.1351584022 | J8: kgmol/hr | K8: TAirF | L8: 1250 | M8: K | V8: % max change | W8: =(W7-W3)/W5 -> 0.1750173894 | X8: =(X7-X3)/X5 -> 0.1258460775 | Y8: 0.2216587754 | Z8: 0.06797895953 | AA8: -0.03658759757
A9: TubeLength | B9: =VolPerTube/TubeXC -> 3.572050512 | C9: m | D9: PF | E9: 162 | F9: kPa | H9: CAF | I9: =PF/Rgas/TF -> 0.01882628568 | J9: kgmol/m3 | K9: Tair0 | L9: 1030.908581 | M9: K - estimate | N9: Tref | O9: 298.15 | P9: K
A11: Reactor Volume (m3) | B11: FA (kgmol/hr) | C11: FK (kgmol/hr) | D11: FM (kgmol/hr) | E11: FT (kgmol/hr) | F11: H (kJ/m3) | G11: T (K) | H11: HAir (kJ/m3) | I11: TAir (K) | J11: CA (kgmol/m3) | K11: rA (kgmol/m3/hr) | L11: dFA (kgmol/m3/hr) | M11: HtRxn(T) (kJ/kgmol) | N11: dH (kJ/m3/hr) | O11: dHAir (kJ/m3/hr) | P11: Conversion
A12: 0 | B12: =FAF -> 0.1351584022 | C12: 0 | D12: 0 | E12: 0 | F12: =FAF*(CpAavg(TF)*(TF-Tref)+HfA) -> -16392.51773 | G12: =TF -> 1035 | H12: =FAir*CpAiravg(Tair0)*(Tair0-Tref) -> 69527.51504 | I12: =Tair0 -> 1030.908581 | J12: =CAF -> 0.01882628568 | K12: =k0*EXP(-E/Rgas/TF)*J12 -> 242.6768093 | L12: =-K12 -> -242.6768093 | M12: =HtRxn(G12) -> 79171.61409 | N12: =-K12*M12 + U*A*(I12-G12) -> -19458293.35 | O12: =-U*A*(G12-I12) -> -245178.652 | P12: =(FAF-B12)/FAF -> 0
A13: 1e-06 | B13: =B12+L12*dV -> 0.1349157254 | C13: =FAF-B13 -> 0.0002426768093 | D13: =FAF-B13 -> 0.0002426768093 | E13: =B13+C13+D13 -> 0.135401079 | F13: =F12+N12*dV -> -16411.97602 | G13: =findT(F13,G12,B13,C13,D13) -> 1033.303251 | H13: =H12+O12*dV -> 69527.26986 | I13: =findTAir(H13,I12,FAir) -> 1030.90616 | J13: =B13/E13*CAF*TF/G13 -> 0.01878960482 | K13: 242.2039815 | L13: =-K13 -> -242.2039815 | M13: =HtRxn(G13) -> 79184.47893 | N13: -19322441.93 | O13: -143645.8626 | P13: 0.001795499247
A14: 2e-06 | B14: 0.1346735214 | C14: 0.0004848807908 | D14: 0.0004848807908 | E14: =B14+C14+D14 -> 0.135643283 | F14: -16431.29847 | G14: =findT(F14,G13,B14,C14,D14) -> 1031.612736 | H14: 69527.12621 | I14: 1030.904742 | J14: 0.01875306343 | K14: 241.7329513 | L14: =-K14 -> -241.7329513 | M14: =HtRxn(G14) -> 79197.28625 | N14: -19187020.37 | O14: -42426.63149 | P14: 0.003587500169
A15: 3e-06 | B15: 0.1344317885 | C15: 0.0007266137421 | D15: 0.0007266137421 | E15: 0.1358850159 | F15: -16450.48549 | G15: 1029.928444 | H15: 69527.08379 | I15: 1030.904323 | J15: 0.01871665989 | K15: 241.2636981 | L15: -241.2636981 | M15: 79210.03614 | N15: -19052026.62 | O15: 58479.61762 | P15: 0.005376016069
A16: 4e-06 | B16: 0.1341905248 | C16: 0.0009678774402 | D16: 0.0009678774402 | E16: 0.1361262796 | F16: -16469.53751 | G16: 1028.250362 | H16: 69527.14227 | I16: 1030.9049 | J16: 0.01868039259 | K16: 240.796201 | L16: -240.796201 | M16: 79222.7287 | N16: -18917458.65 | O16: 159073.4543 | P16: 0.007161060092
A17: 5e-06 | B17: 0.1339497286 | C17: 0.001208673641 | D17: 0.001208673641 | E17: 0.1363670758 | F17: -16488.45497 | G17: 1026.578477 | H17: 69527.30134 | I17: 1030.906471 | J17: 0.01864425995 | K17: 240.3304398 | L17: -240.3304398 | M17: 79235.36403 | N17: -18783314.45 | O17: 259355.4417 | P17: 0.008942645233
A18: 6e-06 | B18: 0.1337093981 | C18: 0.001449004081 | D18: 0.001449004081 | E18: 0.1366074063 | F18: -16507.23829 | G18: 1024.912777 | H18: 69527.5607 | I18: 1030.909032 | J18: 0.01860826042 | K18: 239.8663944 | L18: -239.8663944 | M18: 79247.94222 | N18: -18649592.03 | O18: 359326.1359 | P18: 0.01072078433
A19: 7e-06 | B19: 0.1334695317 | C19: 0.001688870475 | D19: 0.001688870475 | E19: 0.1368472727 | F19: -16525.88788 | G19: 1023.25325 | H19: 69527.92002 | I19: 1030.91258 | J19: 0.01857239245 | K19: 239.4040448 | L19: -239.4040448 | M19: 79260.46337 | N19: -18516289.44 | O19: 458986.087 | P19: 0.01249549009
A20: 8e-06 | B20: 0.1332301277 | C20: 0.00192827452 | D20: 0.00192827452 | E20: =B20+C20+D20 -> 0.1370866767 | F20: -16544.40417 | G20: 1021.599883 | H20: 69528.37901 | I20: 1030.917112 | J20: 0.01853665451 | K20: 238.9433715 | L20: -238.9433715 | M20: =HtRxn(G20) -> 79272.92759 | N20: -18383404.75 | O20: 558335.8382 | P20: 0.01426677505
A21: 9e-06 | B21: 0.1329911843 | C21: 0.002167217892 | D21: 0.002167217892 | E21: 0.1373256201 | F21: -16562.78757 | G21: 1019.952665 | H21: 69528.93734 | I21: 1030.922626 | J21: 0.01850104511 | K21: 238.484355 | L21: -238.484355 | M21: 79285.33496 | N21: -18250936.04 | O21: 657375.9267 | P21: 0.01603465161
A22: 1e-05 | B22: 0.1327527 | C22: 0.002405702247 | D22: 0.002405702247 | E22: 0.1375641045 | F22: -16581.03851 | G22: 1018.311583 | H22: 69529.59472 | I22: 1030.929117 | J22: 0.01846556276 | K22: 238.0269762 | L22: -238.0269762 | M22: 79297.68558 | N22: -18118881.44 | O22: 756106.8832 | P22: 0.01779913204
A23: 1.1e-05 | B23: 0.132514673 | C23: 0.002643729223 | D23: 0.002643729223 | E23: 0.1378021314 | F23: -16599.15739 | G23: 1016.676626 | H23: 69530.35083 | I23: 1030.936583 | J23: 0.018430206 | K23: 237.5712163 | L23: -237.5712163 | M23: 79309.97955 | N23: -17987239.07 | O23: 854529.2325 | P23: 0.01956022844
A24: 1.2e-05 | B24: 0.1322771018 | C24: 0.002881300439 | D24: 0.002881300439 | E24: 0.1380397026 | F24: -16617.14463 | G24: 1015.047783 | H24: 69531.20536 | I24: 1030.945021 | J24: 0.01839497336 | K24: 237.1170564 | L24: -237.1170564 | M24: 79322.21696 | N24: -17856007.1 | O24: 952643.4931 | P24: 0.0213179528
A25: 1.3e-05 | B25: 0.1320399847 | C25: 0.003118417496 | D25: 0.003118417496 | E25: 0.1382768197 | F25: -16635.00064 | G25: 1013.42504 | H25: 69532.158 | I25: 1030.954428 | J25: 0.01835986343 | K25: 236.6644783 | L25: -236.6644783 | M25: 79334.39792 | N25: -17725183.71 | O25: 1050450.177 | P25: 0.02307231696
A26: 1.4e-05 | B26: 0.1318033202 | C26: 0.003355081974 | D26: 0.003355081974 | E26: 0.1385134842 | F26: -16652.72582 | G26: 1011.808388 | H26: 69533.20845 | I26: 1030.9648 | J26: 0.01832487479 | K26: 236.2134635 | L26: -236.2134635 | M26: 79346.52252 | N26: -17594767.11 | O26: 1147949.792 | P26: 0.02482333262
A27: 1.5e-05 | B27: 0.1315671068 | C27: 0.003591295438 | D27: 0.003591295438 | E27: 0.1387496976 | F27: -16670.32059 | G27: 1010.197814 | H27: 69534.3564 | I27: 1030.976135 | J27: 0.01829000604 | K27: 235.7639943 | L27: -235.7639943 | M27: 79358.59085 | N27: -17464755.52 | O27: 1245142.839 | P27: 0.02657101134
A28: 1.6e-05 | B28: 0.1313313428 | C28: 0.003827059432 | D28: 0.003827059432 | E28: 0.1389854616 | F28: -16687.78534 | G28: 1008.593308 | H28: 69535.60154 | I28: 1030.98843 | J28: 0.0182552558 | K28: 235.3160526 | L28: -235.3160526 | M28: 79370.60301 | N28: -17335147.18 | O28: 1342029.812 | P28: 0.02831536456
A29: 1.7e-05 | B29: 0.1310960267 | C29: 0.004062375484 | D29: 0.004062375484 | E29: 0.1392207777 | F29: -16705.12049 | G29: 1006.994857 | H29: 69536.94357 | I29: 1031.001682 | J29: 0.01822062271 | K29: 234.8696211 | L29: -234.8696211 | M29: 79382.5591 | N29: -17205940.38 | O29: 1438611.2 | P29: 0.03005640358
A30: 1.8e-05 | B30: 0.1308611571 | C30: 0.004297245106 | D30: 0.004297245106 | E30: 0.1394556473 | F30: -16722.32643 | G30: 1005.402452 | H30: 69538.38218 | I30: 1031.015887 | J30: 0.01818610543 | K30: 234.4246823 | L30: -234.4246823 | M30: 79394.45922 | N30: -17077133.39 | O30: 1534887.489 | P30: 0.03179413958
A31: 1.9e-05 | B31: 0.1306267324 | C31: 0.004531669788 | D31: 0.004531669788 | E31: 0.139690072 | F31: -16739.40356 | G31: 1003.816081 | H31: 69539.91707 | I31: 1031.031043 | J31: 0.01815170262 | K31: 233.9812192 | L31: -233.9812192 | M31: 79406.30345 | N31: -16948724.54 | O31: 1630859.155 | P31: 0.0335285836
A32: 2e-05 | B32: 0.1303927512 | C32: 0.004765651007 | D32: 0.004765651007 | E32: 0.1399240532 | F32: -16756.35229 | G32: 1002.235733 | H32: 69541.54793 | I32: 1031.047146 | J32: 0.01811741296 | K32: 233.5392146 | L32: -233.5392146 | M32: 79418.09191 | N32: -16820712.14 | O32: 1726526.673 | P32: 0.03525974656
A33: 2.1e-05 | B33: 0.130159212 | C33: 0.004999190222 | D33: 0.004999190222 | E33: 0.1401575924 | F33: -16773.173 | G33: 1000.661397 | H33: 69543.27446 | I33: 1031.064194 | J33: 0.01808323517 | K33: 233.098652 | L33: -233.098652 | M33: 79429.82469 | N33: -16693094.55 | O33: 1821890.509 | P33: 0.03698763925
A34: 2.2e-05 | B34: 0.1299261133 | C34: 0.005232288874 | D34: 0.005232288874 | E34: 0.1403906911 | F34: -16789.86609 | G34: 999.0930622 | H34: 69545.09635 | I34: 1031.082184 | J34: 0.01804916796 | K34: 232.6595148 | L34: -232.6595148 | M34: 79441.50188 | N34: -16565870.15 | O34: 1916951.126 | P34: 0.03871227233
A35: 2.3e-05 | B35: 0.1296934538 | C35: 0.005464948388 | D35: 0.005464948388 | E35: 0.1406233506 | F35: -16806.43196 | G35: 997.5307187 | H35: 69547.0133 | I35: 1031.101112 | J35: 0.01801521005 | K35: 232.2217866 | L35: -232.2217866 | M35: 79453.12358 | N35: -16439037.33 | O35: 2011708.981 | P35: 0.04043365636
A36: 2.4e-05 | B36: 0.129461232 | C36: 0.005697170175 | D36: 0.005697170175 | E36: 0.1408555724 | F36: -16822.871 | G36: 995.9743556 | H36: 69549.02501 | I36: 1031.120976 | J36: 0.01798136021 | K36: 231.7854513 | L36: -231.7854513 | M36: 79464.68989 | N36: -16312594.48 | O36: 2106164.526 | P36: 0.04215180175
A37: 2.5e-05 | B37: 0.1292294466 | C37: 0.005928955626 | D37: 0.005928955626 | E37: 0.1410873578 | F37: -16839.1836 | G37: 994.4239624 | H37: 69551.13117 | I37: 1031.141772 | J37: 0.01794761718 | K37: 231.350493 | L37: -231.350493 | M37: 79476.20091 | N37: -16186540.05 | O37: 2200318.208 | P37: 0.04386671883
A38: 2.6e-05 | B38: 0.1289980961 | C38: 0.006160306119 | D38: 0.006160306119 | E38: 0.1413187083 | F38: -16855.37014 | G38: 992.8795288 | H38: 69553.33149 | I38: 1031.163498 | J38: 0.01791397976 | K38: 230.9168959 | L38: -230.9168959 | M38: 79487.65673 | N38: -16060872.49 | O38: 2294170.469 | P38: 0.04557841776
A39: 2.7e-05 | B39: 0.1287671792 | C39: 0.006391223015 | D39: 0.006391223015 | E39: 0.1415496252 | F39: -16871.43101 | G39: 991.3410444 | H39: 69555.62566 | I39: 1031.186151 | J39: 0.01788044672 | K39: 230.4846444 | L39: -230.4846444 | M39: 79499.05746 | N39: -15935590.24 | O39: 2387721.745 | P39: 0.04728690863
A40: 2.8e-05 | B40: 0.1285366945 | C40: 0.00662170766 | D40: 0.00662170766 | E40: 0.1417801099 | F40: -16887.3666 | G40: 989.8084992 | H40: 69558.01338 | I40: 1031.209727 | J40: 0.01784701689 | K40: 230.0537232 | L40: -230.0537232 | M40: 79510.4032 | N40: -15810691.82 | O40: 2480972.471 | P40: 0.04899220138
A41: 2.9e-05 | B41: 0.1283066408 | C41: 0.006851761383 | D41: 0.006851761383 | E41: 0.1420101636 | F41: -16903.17729 | G41: 988.2818829 | H41: 69560.49436 | I41: 1031.234224 | J41: 0.01781368907 | K41: 229.624117 | L41: -229.624117 | M41: 79521.69404 | N41: -15686175.71 | O41: 2573923.072 | P41: 0.05069430587
A42: 3e-05 | B42: 0.1280770167 | C42: 0.0070813855 | D42: 0.0070813855 | E42: 0.1422397877 | F42: -16918.86347 | G42: 986.7611856 | H42: 69563.06828 | I42: 1031.259639 | J42: 0.0177804621 | K42: 229.1958109 | L42: -229.1958109 | M42: 79532.93008 | N42: -15562040.43 | O42: 2666573.971 | P42: 0.05239323183
A43: 3.1e-05 | B43: 0.1278478209 | C43: 0.007310581311 | D43: 0.007310581311 | E43: 0.1424689835 | F43: -16934.42551 | G43: 985.2463973 | H43: 69565.73485 | I43: 1031.285968 | J43: 0.01774733484 | K43: 228.7687899 | L43: -228.7687899 | M43: 79544.11142 | N43: -15438284.53 | O43: 2758925.588 | P43: 0.05408898886
A44: 3.2e-05 | B44: 0.1276190521 | C44: 0.007539350101 | D44: 0.007539350101 | E44: 0.1426977523 | F44: -16949.86379 | G44: 983.7375081 | H44: 69568.49378 | I44: 1031.313209 | J44: 0.01771430614 | K44: 228.3430395 | L44: -228.3430395 | M44: 79555.23817 | N44: -15314906.56 | O44: 2850978.336 | P44: 0.05578158648
A45: 3.3e-05 | B45: =B44+L44*dV -> 0.1273907091 | C45: =FAF-B45 -> 0.00776769314 | D45: =FAF-B45 -> 0.00776769314 | E45: 0.1429260953 | F45: =F44+N44*dV -> -16965.1787 | G45: 982.2345082 | H45: =H44+O44*dV -> 69571.34476 | I45: 1031.341359 | J45: =B45/E45*CAF*TF/G45 -> 0.01768137488 | K45: 227.9185451 | L45: -227.9185451 | M45: 79566.31042 | N45: -15191905.09 | O45: 2942732.623 | P45: 0.05747103409
A46: 3.4e-05 | B46: 0.1271627905 | C46: 0.007995611685 | D46: 0.007995611685 | E46: 0.1431540139 | F46: -16980.3706 | G46: 980.7373879 | H46: 69574.28749 | I46: 1031.370414 | J46: 0.01764853996 | K46: 227.4952924 | L46: -227.4952924 | M46: 79577.32828 | N46: -15069278.71 | O46: 3034188.856 | P46: 0.05915734098
A47: 3.5e-05 | B47: 0.1269352952 | C47: 0.008223106978 | D47: 0.008223106978 | E47: 0.1433815092 | F47: -16995.43988 | G47: 979.2461376 | H47: 69577.32168 | I47: 1031.400373 | J47: 0.01761580026 | K47: 227.0732673 | L47: -227.0732673 | M47: 79588.29184 | N47: -14947026.03 | O47: 3125347.434 | P47: 0.06084051634
A48: 3.6e-05 | B48: 0.126708222 | C48: 0.008450180245 | D48: 0.008450180245 | E48: 0.1436085824 | F48: -17010.38691 | G48: 977.7607477 | H48: 69580.44703 | I48: 1031.431231 | J48: 0.01758315471 | K48: 226.6524558 | L48: -226.6524558 | M48: 79599.20121 | N48: -14825145.68 | O48: 3216208.755 | P48: 0.06252056925
A49: 3.7e-05 | B49: 0.1264815695 | C49: 0.008676832701 | D49: 0.008676832701 | E49: 0.1438352349 | F49: -17025.21205 | G49: 976.2812087 | H49: 69583.66323 | I49: 1031.462987 | J49: 0.01755060223 | K49: 226.232844 | L49: -226.232844 | M49: 79610.05649 | N49: -14703636.28 | O49: 3306773.209 | P49: 0.0641975087
A50: 3.8e-05 | B50: 0.1262553367 | C50: 0.008903065545 | D50: 0.008903065545 | E50: 0.1440614677 | F50: -17039.91569 | G50: 974.8075112 | H50: 69586.97001 | I50: 1031.495636 | J50: 0.01751814177 | K50: 225.8144183 | L50: -225.8144183 | M50: 79620.85779 | N50: -14582496.5 | O50: 3397041.186 | P50: 0.06587134355
A51: 3.9e-05 | B51: 0.1260295222 | C51: 0.009128879963 | D51: 0.009128879963 | E51: 0.1442872822 | F51: -17054.49819 | G51: 973.3396458 | H51: 69590.36705 | I51: 1031.529176 | J51: 0.01748577227 | K51: 225.3971652 | L51: -225.3971652 | M51: 79631.6052 | N51: -14461725.01 | O51: 3487013.069 | P51: 0.06754208258
A52: 4e-05 | B52: 0.1258041251 | C52: 0.009354277128 | D52: 0.009354277128 | E52: 0.1445126793 | F52: -17068.95991 | G52: 971.8776032 | H52: 69593.85406 | I52: 1031.563605 | J52: 0.01745349271 | K52: 224.9810714 | L52: -224.9810714 | M52: 79642.29883 | N52: -14341320.48 | O52: 3576689.238 | P52: 0.06920973447
A53: 4.1e-05 | B53: 0.125579144 | C53: 0.0095792582 | D53: 0.0095792582 | E53: 0.1447376604 | F53: -17083.30123 | G53: 970.4213744 | H53: 69597.43075 | I53: 1031.598919 | J53: 0.01742130206 | K53: 224.5661237 | L53: -224.5661237 | M53: 79652.93878 | N53: -14221281.64 | O53: 3666070.07 | P53: 0.0708743078
A54: 4.2e-05 | B54: 0.1253545779 | C54: 0.009803824323 | D54: 0.009803824323 | E54: 0.1449622265 | F54: -17097.52251 | G54: 968.97095 | H54: 69601.09682 | I54: 1031.635115 | J54: 0.01738919931 | K54: 224.1523091 | L54: -224.1523091 | M54: 79663.52517 | N54: -14101607.18 | O54: 3755155.936 | P54: 0.07253581105
A55: 4.3e-05 | B55: 0.1251304256 | C55: 0.01002797663 | D55: 0.01002797663 | E55: 0.1451863788 | F55: -17111.62412 | G55: 967.526321 | H55: 69604.85198 | I55: 1031.67219 | J55: 0.01735718346 | K55: 223.7396146 | L55: -223.7396146 | M55: 79674.05808 | N55: -13982295.84 | O55: 3843947.206 | P55: 0.07419425259
A56: 4.4e-05 | B56: 0.124906686 | C56: 0.01025171625 | D56: 0.01025171625 | E56: 0.1454101185 | F56: -17125.60642 | G56: 966.0874784 | H56: 69608.69592 | I56: 1031.710142 | J56: 0.01732525353 | K56: 223.3280277 | L56: -223.3280277 | M56: 79684.53763 | N56: -13863346.38 | O56: 3932444.244 | P56: 0.07584964072
A57: 4.5e-05 | B57: 0.1246833579 | C57: 0.01047504427 | D57: 0.01047504427 | E57: 0.1456334465 | F57: -17139.46976 | G57: 964.6544133 | H57: 69612.62837 | I57: 1031.748967 | J57: 0.01729340854 | K57: 222.9175356 | L57: -222.9175356 | M57: 79694.96392 | N57: -13744757.55 | O57: 4020647.412 | P57: 0.07750198363
A58: 4.6e-05 | B58: 0.1244604404 | C58: 0.01069796181 | D58: 0.01069796181 | E58: 0.145856364 | F58: -17153.21452 | G58: 963.2271168 | H58: 69616.64902 | I58: 1031.788663 | J58: 0.01726164753 | K58: 222.508126 | L58: -222.508126 | M58: 79705.33707 | N58: -13626528.12 | O58: 4108557.067 | P58: 0.07915128942
A59: 4.7e-05 | B59: 0.1242379323 | C59: 0.01092046994 | D59: 0.01092046994 | E59: 0.1460788721 | F59: -17166.84105 | G59: 961.80558 | H59: 69620.75757 | I59: 1031.829226 | J59: 0.01722996954 | K59: 222.0997867 | L59: -222.0997867 | M59: 79715.65717 | N59: -13508656.89 | O59: 4196173.562 | P59: 0.0807975661
A60: 4.8e-05 | B60: 0.1240158325 | C60: 0.01114256972 | D60: 0.01114256972 | E60: 0.1463009719 | F60: -17180.34971 | G60: 960.3897942 | H60: 69624.95375 | I60: 1031.870655 | J60: 0.01719837363 | K60: 221.6925054 | L60: -221.6925054 | M60: 79725.92433 | N60: -13391142.66 | O60: 4283497.25 | P60: 0.08244082159
A61: 4.9e-05 | B61: 0.12379414 | C61: 0.01136426223 | D61: 0.01136426223 | E61: 0.1465226644 | F61: -17193.74085 | G61: 958.9797506 | H61: 69629.23724 | I61: 1031.912945 | J61: 0.01716685888 | K61: 221.2862702 | L61: -221.2862702 | M61: 79736.13867 | N61: -13273984.25 | O61: 4370528.476 | P61: 0.08408106372
A62: 5e-05 | B62: 0.1235728537 | C62: 0.0115855485 | D62: 0.0115855485 | E62: 0.1467439507 | F62: -17207.01483 | G62: 957.5754407 | H62: 69633.60777 | I62: 1031.956094 | J62: 0.01713542436 | K62: 220.8810693 | L62: -220.8810693 | M62: 79746.30028 | N62: -13157180.49 | O62: 4457267.586 | P62: 0.08571830023
A63: 5.1e-05 | B63: 0.1233519726 | C63: 0.01180642957 | D63: 0.01180642957 | E63: 0.1469648318 | F63: -17220.17201 | G63: 956.1768559 | H63: 69638.06504 | I63: 1032.000099 | J63: 0.01710406917 | K63: 220.4768909 | L63: -220.4768909 | M63: 79756.40929 | N63: -13040730.23 | O63: 4543714.919 | P63: 0.08735253876
A64: 5.2e-05 | B64: 0.1231314957 | C64: 0.01202690646 | D64: 0.01202690646 | E64: 0.1471853087 | F64: -17233.21274 | G64: 954.7839875 | H64: 69642.60875 | I64: 1032.044957 | J64: 0.01707279241 | K64: 220.0737234 | L64: -220.0737234 | M64: 79766.46579 | N64: -12924632.32 | O64: 4629870.813 | P64: 0.08898378689
A65: 5.3e-05 | B65: 0.122911422 | C65: 0.01224698018 | D65: 0.01224698018 | E65: 0.1474053824 | F65: -17246.13738 | G65: 953.3968272 | H65: 69647.23863 | I65: 1032.090665 | J65: 0.01704159318 | K65: 219.6715555 | L65: -219.6715555 | M65: 79776.46989 | N65: -12808885.63 | O65: 4715735.602 | P65: 0.0906120521
A66: 5.4e-05 | B66: 0.1226917505 | C66: 0.01246665174 | D66: 0.01246665174 | E66: 0.1476250539 | F66: -17258.94626 | G66: 952.0153665 | H66: 69651.95436 | I66: 1032.137221 | J66: 0.01701047063 | K66: 219.2703759 | L66: -219.2703759 | M66: 79786.42172 | N66: -12693489.06 | O66: 4801309.618 | P66: 0.09223734177
A67: 5.5e-05 | B67: 0.1224724801 | C67: 0.01268592211 | D67: 0.01268592211 | E67: 0.1478443243 | F67: -17271.63975 | G67: 950.6395971 | H67: 69656.75567 | I67: 1032.184621 | J67: 0.01697942387 | K67: 218.8701733 | L67: -218.8701733 | M67: 79796.32137 | N67: -12578441.5 | O67: 4886593.189 | P67: 0.09385966323
A68: 5.6e-05 | B68: 0.1222536099 | C68: 0.01290479229 | D68: 0.01290479229 | E68: 0.1480631945 | F68: -17284.21819 | G68: 949.2695106 | H68: 69661.64226 | I68: 1032.232863 | J68: 0.01694845205 | K68: 218.4709367 | L68: -218.4709367 | M68: 79806.16896 | N68: -12463741.85 | O68: 4971586.641 | P68: 0.0954790237
A69: 5.7e-05 | B69: 0.122035139 | C69: 0.01312326322 | D69: 0.01312326322 | E69: 0.1482816654 | F69: -17296.68193 | G69: 947.9050987 | H69: 69666.61385 | I69: 1032.281943 | J69: 0.01691755433 | K69: 218.0726553 | L69: -218.0726553 | M69: 79815.9646 | N69: -12349389.04 | O69: 5056290.294 | P69: 0.09709543032
A70: 5.8e-05 | B70: 0.1218170663 | C70: 0.01334133588 | D70: 0.01334133588 | E70: 0.1484997381 | F70: -17309.03132 | G70: 946.5463533 | H70: 69671.67014 | I70: 1032.331859 | J70: 0.01688672988 | K70: 217.6753183 | L70: -217.6753183 | M70: 79825.70841 | N70: -12235382.01 | O70: 5140704.47 | P70: 0.09870889017
A71: 5.9e-05 | B71: 0.121599391 | C71: 0.0135590112 | D71: 0.0135590112 | E71: 0.1487174134 | F71: -17321.2667 | G71: 945.1932663 | H71: 69676.81085 | I71: 1032.382608 | J71: 0.01685597786 | K71: 217.2789149 | L71: -217.2789149 | M71: 79835.40049 | N71: -12121719.71 | O71: 5224829.484 | P71: 0.1003194102
A72: 6e-05 | B72: 0.1213821121 | C72: 0.01377629011 | D72: 0.01377629011 | E72: 0.1489346923 | F72: -17333.38842 | G72: 943.8458293 | H72: 69682.03567 | I72: 1032.434187 | J72: 0.01682529745 | K72: 216.8834348 | L72: -216.8834348 | M72: 79845.04096 | N72: -12008401.08 | O72: 5308665.651 | P72: 0.1019269974
A73: 6.1e-05 | B73: 0.1211652287 | C73: 0.01399317355 | D73: 0.01399317355 | E73: 0.1491515758 | F73: -17345.39683 | G73: 942.5040345 | H73: 69687.34434 | I73: 1032.486594 | J73: 0.01679468786 | K73: 216.4888674 | L73: -216.4888674 | M73: 79854.62994 | N73: -11895425.11 | O73: 5392213.282 | P73: 0.1035316585
A74: 6.2e-05 | B74: 0.1209487398 | C74: 0.01420966241 | D74: 0.01420966241 | E74: 0.1493680646 | F74: -17357.29225 | G74: 941.1678738 | H74: 69692.73655 | I74: 1032.539824 | J74: 0.01676414829 | K74: 216.0952026 | L74: -216.0952026 | M74: 79864.16753 | N74: -11782790.78 | O74: 5475472.686 | P74: 0.1051334004
A75: 6.3e-05 | B75: 0.1207326446 | C75: 0.01442575762 | D75: 0.01442575762 | E75: 0.1495841598 | F75: -17369.07504 | G75: 939.8373392 | H75: 69698.21203 | I75: 1032.593876 | J75: 0.01673367795 | K75: 215.7024302 | L75: -215.7024302 | M75: 79873.65386 | N75: -11670497.08 | O75: 5558444.169 | P75: 0.1067322296
A76: 6.4e-05 | B76: 0.1205169422 | C76: 0.01464146005 | D76: 0.01464146005 | E76: 0.1497998623 | F76: -17380.74554 | G76: 938.5124227 | H76: 69703.77047 | I76: 1032.648747 | J76: 0.01670327605 | K76: =k0*EXP(-E/Rgas/TF)*J76 -> 215.3105401 | L76: -215.3105401 | M76: 79883.08903 | N76: =-K76*M76 + U*A*(I76-G76) -> -11558543.01 | O76: =-U*A*(G76-I76) -> 5641128.034 | P76: =(FAF-B76)/FAF -> 0.1083281528
A77: 6.5e-05 | B77: =B76+L76*dV -> 0.1203016316 | C77: =FAF-B77 -> 0.01485677059 | D77: =FAF-B77 -> 0.01485677059 | E77: 0.1500151728 | F77: =F76+N76*dV -> -17392.30408 | G77: 937.1931166 | H77: =H76+O76*dV -> 69709.4116 | I77: =findTAir(H77,I76,FAir) -> 1032.704433 | J77: =B77/E77*CAF*TF/G77 -> 0.01667294184 | K77: 214.9195225 | L77: -214.9195225 | M77: 79892.47317 | N77: -11446927.6 | O77: 5723524.584 | P77: 0.1099211765
A78: 6.6e-05 | B78: 0.1200867121 | C78: 0.01507169011 | D78: 0.01507169011 | E78: 0.1502300923 | F78: -17403.75101 | G78: =findT(F78,G77,B78,C78,D78) -> 935.8794129 | H78: 69715.13512 | I78: 1032.760932 | J78: 0.01664267455 | K78: 214.5293675 | L78: =-K78 -> -214.5293675 | M78: 79901.8064 | N78: -11335649.87 | O78: 5805634.116 | P78: 0.1115113072
A79: 6.7e-05 | B79: 0.1198721827 | C79: 0.01528621948 | D79: 0.01528621948 | E79: 0.1504446217 | F79: -17415.08666 | G79: 934.5713038 | H79: 69720.94076 | I79: 1032.818241 | J79: 0.01661247343 | K79: 214.1400655 | L79: -214.1400655 | M79: 79911.08882 | N79: -11224708.86 | O79: 5887456.927 | P79: 0.1130985512
A80: 6.8e-05 | B80: 0.1196580427 | C80: 0.01550035954 | D80: 0.01550035954 | E80: 0.1506587617 | F80: -17426.31137 | G80: 933.2687816 | H80: 69726.82821 | I80: 1032.876357 | J80: 0.01658233775 | K80: 213.7516069 | L80: -213.7516069 | M80: 79920.32056 | N80: -11114103.63 | O80: 5968993.312 | P80: 0.1146829149
A81: 6.9e-05 | B81: 0.1194442911 | C81: 0.01571411115 | D81: 0.01571411115 | E81: 0.1508725134 | F81: -17437.42547 | G81: 931.9718385 | H81: 69732.79721 | I81: 1032.935278 | J81: 0.01655226676 | K81: 213.3639823 | L81: -213.3639823 | M81: 79929.50173 | N81: -11003833.23 | O81: 6050243.563 | P81: 0.1162644045
A82: 7e-05 | B82: 0.1192309271 | C82: 0.01592747513 | D82: 0.01592747513 | E82: 0.1510858773 | F82: -17448.4293 | G82: 930.6804669 | H82: 69738.84745 | I82: 1032.995 | J82: 0.01652225974 | K82: 212.9771823 | L82: -212.9771823 | M82: 79938.63245 | N82: -10893896.73 | O82: 6131207.969 | P82: 0.1178430262
A83: 7.1e-05 | B83: 0.1190179499 | C83: 0.01614045231 | D83: 0.01614045231 | E83: 0.1512988545 | F83: -17459.3232 | G83: 929.3946592 | H83: 69744.97866 | I83: 1033.05552 | J83: 0.01649231599 | K83: 212.5911978 | L83: -212.5911978 | M83: 79947.71285 | N83: -10784293.22 | O83: 6211886.818 | P83: 0.119418786
A84: 7.2e-05 | B84: 0.1188053587 | C84: 0.01635304351 | D84: 0.01635304351 | E84: =B84+C84+D84 -> 0.1515114457 | F84: -17470.10749 | G84: 928.1144076 | H84: 69751.19055 | I84: 1033.116837 | J84: 0.01646243478 | K84: 212.2060196 | L84: -212.2060196 | M84: =HtRxn(G84) -> 79956.74305 | N84: -10675021.78 | O84: 6292280.396 | P84: 0.1209916901
A85: 7.3e-05 | B85: 0.1185931527 | C85: 0.01656524953 | D85: 0.01656524953 | E85: 0.1517236517 | F85: -17480.78252 | G85: 926.8397046 | H85: 69757.48283 | I85: 1033.178946 | J85: 0.01643261544 | K85: 211.8216387 | L85: -211.8216387 | M85: 79965.72315 | N85: -10566081.53 | O85: 6372388.987 | P85: 0.1225617443
A86: 7.4e-05 | B86: 0.118381331 | C86: 0.01677707117 | D86: 0.01677707117 | E86: 0.1519354734 | F86: -17491.3486 | G86: 925.5705427 | H86: 69763.85522 | I86: 1033.241845 | J86: 0.01640285726 | K86: 211.4380463 | L86: -211.4380463 | M86: 79974.65329 | N86: -10457471.57 | O86: 6452212.872 | P86: 0.1241289546
A87: 7.5e-05 | B87: 0.118169893 | C87: 0.01698850922 | D87: 0.01698850922 | E87: 0.1521469114 | F87: -17501.80607 | G87: 924.3069145 | H87: 69770.30743 | I87: 1033.305531 | J87: 0.01637315956 | K87: 211.0552335 | L87: -211.0552335 | M87: 79983.53359 | N87: -10349191.03 | O87: 6531752.332 | P87: 0.1256933268
A88: 7.6e-05 | B88: 0.1179588378 | C88: 0.01719956445 | D88: 0.01719956445 | E88: 0.1523579667 | F88: -17512.15526 | G88: 923.0488123 | H88: 69776.83918 | I88: 1033.370002 | J88: 0.01634352168 | K88: 210.6731918 | L88: -210.6731918 | M88: 79992.36417 | N88: -10241239.04 | O88: 6611007.644 | P88: 0.1272548667
A89: 7.7e-05 | B89: 0.1177481646 | C89: 0.01741023764 | D89: 0.01741023764 | E89: 0.1525686398 | F89: -17522.3965 | G89: 921.7962288 | H89: 69783.45019 | I89: 1033.435255 | J89: 0.01631394294 | K89: 210.2919125 | L89: -210.2919125 | M89: 80001.14514 | N89: -10133614.73 | O89: 6689979.084 | P89: 0.1288135799
A90: 7.8e-05 | B90: 0.1175378726 | C90: 0.01762052955 | D90: 0.01762052955 | E90: 0.1527789318 | F90: -17532.53011 | G90: 920.5491565 | H90: 69790.14017 | I90: 1033.501286 | J90: 0.0162844227 | K90: 209.9113872 | L90: -209.9113872 | M90: 80009.87664 | N90: -10026317.27 | O90: 6768666.928 | P90: 0.1303694722
A91: 7.9e-05 | B91: 0.1173279613 | C91: 0.01783044094 | D91: 0.01783044094 | E91: 0.1529888431 | F91: -17542.55643 | G91: 919.3075881 | H91: 69796.90883 | I91: 1033.568093 | J91: 0.0162549603 | K91: 209.5316075 | L91: -209.5316075 | M91: 80018.55879 | N91: -9919345.806 | O91: 6847071.447 | P91: 0.131922549
A92: 8e-05 | B92: 0.1171184297 | C92: 0.01803997255 | D92: 0.01803997255 | E92: 0.1531983748 | F92: -17552.47578 | G92: 918.0715163 | H92: 69803.75591 | I92: 1033.635673 | J92: 0.0162255551 | K92: 209.1525652 | L92: -209.1525652 | M92: 80027.19171 | N92: -9812699.516 | O92: 6925192.914 | P92: 0.133472816
A93: 8.1e-05 | B93: 0.1169092771 | C93: 0.01824912511 | D93: 0.01824912511 | E93: 0.1534075273 | F93: -17562.28848 | G93: 916.8409337 | H93: 69810.6811 | I93: 1033.704023 | J93: 0.01619620648 | K93: 208.7742521 | L93: -208.7742521 | M93: 80035.77553 | N93: -9706377.579 | O93: 7003031.597 | P93: 0.1350202786
A94: 8.2e-05 | B94: 0.1167005028 | C94: 0.01845789937 | D94: 0.01845789937 | E94: 0.1536163016 | F94: -17571.99485 | G94: 915.615833 | H94: 69817.68413 | I94: 1033.773141 | J94: 0.0161669138 | K94: 208.3966602 | L94: -208.3966602 | M94: 80044.31037 | N94: -9600379.181 | O94: 7080587.765 | P94: 0.1365649421
A95: 8.3e-05 | B95: 0.1164921062 | C95: 0.01866629603 | D95: 0.01866629603 | E95: 0.1538246982 | F95: -17581.59523 | G95: 914.396207 | H95: 69824.76472 | I95: 1033.843024 | J95: 0.01613767646 | K95: 208.0197815 | L95: -208.0197815 | M95: 80052.79636 | N95: -9494703.521 | O95: 7157861.685 | P95: 0.1381068119
A96: 8.4e-05 | B96: 0.1162840864 | C96: 0.01887431581 | D96: 0.01887431581 | E96: 0.154032718 | F96: -17591.08994 | G96: 913.1820484 | H96: 69831.92258 | I96: 1033.913668 | J96: 0.01610849383 | K96: 207.6436082 | L96: -207.6436082 | M96: 80061.23362 | N96: -9389349.804 | O96: 7234853.621 | P96: 0.1396458933
A97: 8.5e-05 | B97: 0.1160764428 | C97: 0.01908195942 | D97: 0.01908195942 | E97: 0.1542403616 | F97: -17600.47929 | G97: 911.97335 | H97: 69839.15743 | I97: 1033.985071 | J97: 0.01607936533 | K97: 207.2681325 | L97: -207.2681325 | M97: 80069.62228 | N97: -9284317.245 | O97: 7311563.837 | P97: 0.1411821915
A98: 8.6e-05 | B98: 0.1158691747 | C98: 0.01928922755 | D98: 0.01928922755 | E98: 0.1544476298 | F98: -17609.7636 | G98: 910.7701046 | H98: 69846.469 | I98: 1034.057231 | J98: 0.01605029036 | K98: 206.8933468 | L98: -206.8933468 | M98: 80077.96247 | N98: -9179605.068 | O98: 7387992.596 | P98: 0.1427157116
A99: 8.7e-05 | B99: 0.1156622813 | C99: 0.0194961209 | D99: 0.0194961209 | E99: 0.1546545231 | F99: -17618.94321 | G99: 909.5723051 | H99: 69853.85699 | I99: 1034.130144 | J99: 0.01602126832 | K99: 206.5192436 | L99: -206.5192436 | M99: 80086.25432 | N99: -9075212.504 | O99: 7464140.158 | P99: 0.1442464588
A100: 8.8e-05 | B100: 0.1154557621 | C100: 0.01970264014 | D100: 0.01970264014 | E100: 0.1548610423 | F100: -17628.01842 | G100: 908.3799443 | H100: 69861.32113 | I100: 1034.203807 | J100: 0.01599229865 | K100: 206.1458153 | L100: -206.1458153 | M100: 80094.49795 | N100: -8971138.795 | O100: 7540006.785 | P100: 0.1457744381
A101: 8.9e-05 | B101: 0.1152496162 | C101: 0.01990878595 | D101: 0.01990878595 | E101: 0.1550671882 | F101: -17636.98956 | G101: 907.1930151 | H101: 69868.86114 | I101: 1034.278219 | J101: 0.01596338077 | K101: 205.7730546 | L101: -205.7730546 | M101: 80102.6935 | N101: -8867383.188 | O101: 7615592.734 | P101: 0.1472996546
A102: 9e-05 | B102: 0.1150438432 | C102: 0.02011455901 | D102: 0.02011455901 | E102: 0.1552729612 | F102: -17645.85694 | G102: 906.0115104 | H102: 69876.47673 | I102: 1034.353375 | J102: 0.01593451411 | K102: 205.4009542 | L102: -205.4009542 | M102: 80110.84109 | N102: -8763944.94 | O102: 7690898.263 | P102: 0.148822113
A103: 9.1e-05 | B103: 0.1148384422 | C103: 0.02031995996 | D103: 0.02031995996 | E103: 0.1554783622 | F103: -17654.62089 | G103: 904.8354231 | H103: 69884.16763 | I103: 1034.429274 | J103: 0.01590569813 | K103: 205.029507 | L103: -205.029507 | M103: 80118.94085 | N103: -8660823.316 | O103: 7765923.629 | P103: 0.1503418184
A104: 9.2e-05 | B104: 0.1146334127 | C104: 0.02052498947 | D104: 0.02052498947 | E104: 0.1556833917 | F104: -17663.28171 | G104: 903.6647463 | H104: 69891.93355 | I104: 1034.505912 | J104: 0.01587693226 | K104: 204.6587059 | L104: -204.6587059 | M104: 80126.99291 | N104: -8558017.589 | O104: 7840669.086 | P104: 0.1518587756
A105: 9.3e-05 | B105: 0.114428754 | C105: 0.02072964818 | D105: 0.02072964818 | E105: 0.1558880504 | F105: -17671.83973 | G105: 902.4994727 | H105: 69899.77422 | I105: 1034.583286 | J105: 0.01584821598 | K105: 204.2885438 | L105: -204.2885438 | M105: 80134.99741 | N105: -8455527.04 | O105: 7915134.891 | P105: 0.1533729893
A106: 9.4e-05 | B106: 0.1142244655 | C106: 0.02093393672 | D106: 0.02093393672 | E106: 0.1560923389 | F106: -17680.29526 | G106: 901.3395955 | H106: 69907.68936 | I106: 1034.661395 | J106: 0.01581954873 | K106: 203.9190139 | L106: -203.9190139 | M106: 80142.95447 | N106: -8353350.956 | O106: 7989321.295 | P106: 0.1548844643
A107: 9.5e-05 | B107: 0.1140205465 | C107: 0.02113785573 | D107: 0.02113785573 | E107: 0.1562962579 | F107: -17688.64861 | G107: 900.1851076 | H107: 69915.67868 | I107: 1034.740234 | J107: 0.01579093 | K107: 203.5501094 | L107: -203.5501094 | M107: 80150.86423 | N107: -8251488.633 | O107: 8063228.551 | P107: 0.1563932052
A108: 9.6e-05 | B108: 0.1138169964 | C108: 0.02134140584 | D108: 0.02134140584 | E108: 0.156499808 | F108: -17696.9001 | G108: 899.036002 | H108: 69923.7419 | I108: 1034.819802 | J108: 0.01576235927 | K108: 203.1818236 | L108: -203.1818236 | M108: 80158.72682 | N108: -8149939.376 | O108: 8136856.912 | P108: 0.1578992167
A109: 9.7e-05 | B109: =B108+L108*dV -> 0.1136138145 | C109: =FAF-B109 -> 0.02154458767 | D109: =FAF-B109 -> 0.02154458767 | E109: 0.1567029899 | F109: =F108+N108*dV -> -17705.05004 | G109: 897.8922718 | H109: =H108+O108*dV -> 69931.87876 | I109: 1034.900095 | J109: =B109/E109*CAF*TF/G109 -> 0.01573383601 | K109: 202.8141497 | L109: -202.8141497 | M109: 80166.54237 | N109: -8048702.495 | O109: 8210206.629 | P109: 0.1594025034
A110: 9.8e-05 | B110: 0.1134110004 | C110: 0.02174740182 | D110: 0.02174740182 | E110: 0.156905804 | F110: -17713.09874 | G110: 896.75391 | H110: 69940.08897 | I110: 1034.981111 | J110: 0.01570535972 | K110: 202.4470813 | L110: -202.4470813 | M110: 80174.31101 | N110: -7947777.307 | O110: 8283277.95 | P110: 0.1609030697
A111: 9.9e-05 | B111: 0.1132085533 | C111: 0.0219498489 | D111: 0.0219498489 | E111: 0.1571082511 | F111: -17721.04651 | G111: 895.6209097 | H111: 69948.37225 | I111: 1035.062847 | J111: 0.0156769299 | K111: 202.0806119 | L111: -202.0806119 | M111: 80182.03288 | N111: -7847163.139 | O111: 8356071.127 | P111: 0.1624009203
A112: 0.0001 | B112: 0.1130064727 | C112: 0.02215192951 | D112: 0.02215192951 | E112: 0.1573103317 | F112: -17728.89368 | G112: 894.4932639 | H112: 69956.72832 | I112: 1035.1453 | J112: 0.01564854606 | K112: 201.7147351 | L112: -201.7147351 | M112: 80189.70812 | N112: -7746859.324 | O112: 8428586.407 | P112: 0.1638960594
A113: 0.000101 | B113: 0.112804758 | C113: 0.02235364424 | D113: 0.02235364424 | E113: 0.1575120464 | F113: -17736.64054 | G113: 893.3709657 | H113: 69965.1569 | I113: 1035.228467 | J113: 0.0156202077 | K113: 201.3494447 | L113: -201.3494447 | M113: 80197.33685 | N113: -7646865.2 | O113: 8500824.038 | P113: 0.1653884914
A114: 0.000102 | B114: 0.1126034085 | C114: 0.02255499369 | D114: 0.02255499369 | E114: 0.1577133959 | F114: -17744.2874 | G114: 892.2540083 | H114: 69973.65773 | I114: 1035.312346 | J114: 0.01559191435 | K114: 200.9847344 | L114: -200.9847344 | M114: 80204.91921 | N114: -7547180.114 | O114: 8572784.269 | P114: 0.1668782208
A115: 0.000103 | B115: 0.1124024238 | C115: 0.02275597842 | D115: 0.02275597842 | E115: 0.1579143806 | F115: -17751.83458 | G115: 891.1423847 | H115: 69982.23051 | I115: 1035.396934 | J115: 0.01556366553 | K115: 200.6205981 | L115: -200.6205981 | M115: 80212.45534 | N115: -7447803.42 | O115: 8644467.347 | P115: 0.1683652518
A116: 0.000104 | B116: 0.1122018032 | C116: 0.02295659902 | D116: 0.02295659902 | E116: 0.1581150012 | F116: -17759.28239 | G116: 890.0360881 | H116: 69990.87498 | I116: 1035.482227 | J116: 0.01553546078 | K116: 200.2570299 | L116: -200.2570299 | M116: 80219.94537 | N116: -7348734.478 | O116: 8715873.517 | P116: 0.1698495887
A117: 0.000105 | B117: 0.1120015462 | C117: 0.02315685605 | D117: 0.02315685605 | E117: 0.1583152583 | F117: -17766.63112 | G117: 888.9351116 | H117: 69999.59085 | I117: 1035.568225 | J117: 0.01550729962 | K117: 199.8940236 | L117: -199.8940236 | M117: 80227.38944 | N117: -7249972.655 | O117: 8787003.025 | P117: 0.1713312356
A118: 0.000106 | B118: 0.1118016521 | C118: 0.02335675008 | D118: 0.02335675008 | E118: 0.1585151523 | F118: -17773.88109 | G118: 887.8394483 | H118: 70008.37786 | I118: 1035.654922 | J118: 0.01547918162 | K118: 199.5315736 | L118: -199.5315736 | M118: 80234.78769 | N118: -7151517.323 | O118: 8857856.119 | P118: 0.1728101967
A119: 0.000107 | B119: 0.1116021206 | C119: 0.02355628165 | D119: 0.02355628165 | E119: 0.1587146839 | F119: -17781.03261 | G119: 886.7490914 | H119: 70017.23571 | I119: 1035.742318 | J119: 0.01545110631 | K119: 199.1696739 | L119: -199.1696739 | M119: 80242.14025 | N119: -7053367.864 | O119: 8928433.042 | P119: 0.1742864762
A120: 0.000108 | B120: 0.1114029509 | C120: 0.02375545132 | D120: 0.02375545132 | E120: 0.1589138535 | F120: -17788.08598 | G120: 885.6640341 | H120: 70026.16415 | I120: 1035.830408 | J120: 0.01542307325 | K120: 198.8083189 | L120: -198.8083189 | M120: 80249.44725 | N120: -6955523.662 | O120: 8998734.039 | P120: 0.1757600781
A121: 0.000109 | B121: 0.1112041426 | C121: 0.02395425964 | D121: 0.02395425964 | E121: 0.1591126618 | F121: -17795.0415 | G121: 884.5842695 | H121: 70035.16288 | I121: 1035.919191 | J121: 0.01539508202 | K121: 198.447503 | L121: -198.447503 | M121: 80256.70885 | N121: -6857984.111 | O121: 9068759.356 | P121: 0.1772310064
A122: 0.00011 | B122: 0.1110056951 | C122: 0.02415270714 | D122: 0.02415270714 | E122: 0.1593111093 | F122: -17801.89949 | G122: 883.5097907 | H122: 70044.23164 | I122: 1036.008664 | J122: 0.01536713217 | K122: 198.0872205 | L122: -198.0872205 | M122: 80263.92517 | N122: -6760748.609 | O122: 9138509.237 | P122: 0.1786992651
A123: 0.000111 | B123: 0.1108076078 | C123: 0.02435079437 | D123: 0.02435079437 | E123: 0.1595091966 | F123: -17808.66023 | G123: 882.440591 | H123: 70053.37015 | I123: 1036.098823 | J123: 0.01533922328 | K123: 197.7274662 | L123: -197.7274662 | M123: 80271.09635 | N123: -6663816.562 | O123: 9207983.926 | P123: 0.1801648582
A124: 0.000112 | B124: 0.1106098804 | C124: 0.02454852183 | D124: 0.02454852183 | E124: 0.159706924 | F124: -17815.32405 | G124: 881.3766635 | H124: 70062.57813 | I124: 1036.189666 | J124: 0.01531135495 | K124: 197.3682344 | L124: -197.3682344 | M124: 80278.22254 | N124: -6567187.379 | O124: 9277183.666 | P124: 0.1816277896
A125: 0.000113 | B125: 0.1104125121 | C125: 0.02474589007 | D125: 0.02474589007 | E125: 0.1599042923 | F125: -17821.89124 | G125: 880.3180015 | H125: 70071.85532 | I125: 1036.28119 | J125: 0.01528352674 | K125: 197.00952 | L125: -197.00952 | M125: 80285.30387 | N125: -6470860.478 | O125: 9346108.703 | P125: 0.1830880631
A126: 0.000114 | B126: 0.1102155026 | C126: 0.02494289959 | D126: 0.02494289959 | E126: 0.1601013018 | F126: -17828.3621 | G126: 879.264598 | H126: 70081.20142 | I126: 1036.373393 | J126: 0.01525573827 | K126: 196.6513178 | L126: -196.6513178 | M126: 80292.34048 | N126: -6374835.282 | O126: 9414759.279 | P126: 0.1845456825
A127: 0.000115 | B127: 0.1100188513 | C127: 0.0251395509 | D127: 0.0251395509 | E127: 0.1602979531 | F127: -17834.73693 | G127: 878.2164464 | H127: 70090.61618 | I127: 1036.466272 | J127: 0.01522798912 | K127: 196.2936224 | L127: -196.2936224 | M127: 80299.33251 | N127: -6279111.219 | O127: 9483135.639 | P127: 0.1860006518
A128: 0.000116 | B128: 0.1098225577 | C128: 0.02533584453 | D128: 0.02533584453 | E128: 0.1604942467 | F128: -17841.01605 | G128: 877.1735397 | H128: 70100.09932 | I128: 1036.559824 | J128: 0.01520027891 | K128: 195.936429 | L128: -195.936429 | M128: 80306.2801 | N128: -6183687.722 | O128: 9551238.026 | P128: 0.1874529745
A129: 0.000117 | B129: 0.1096266212 | C129: 0.02553178096 | D129: 0.02553178096 | E129: 0.1606901832 | F129: -17847.19973 | G129: 876.1358713 | H129: 70109.65056 | I129: 1036.654047 | J129: 0.01517260724 | K129: 195.5797324 | L129: -195.5797324 | M129: 80313.18339 | N129: -6088564.233 | O129: 9619066.685 | P129: 0.1889026545
A130: 0.000118 | B130: 0.1094310415 | C130: 0.02572736069 | D130: 0.02572736069 | E130: 0.1608857629 | F130: -17853.2883 | G130: 875.1034342 | H130: 70119.26962 | I130: 1036.748936 | J130: 0.01514497374 | K130: 195.2235278 | L130: -195.2235278 | M130: 80320.04253 | N130: -5993740.196 | O130: 9686621.859 | P130: 0.1903496954
A131: 0.000119 | B131: 0.109235818 | C131: 0.02592258422 | D131: 0.02592258422 | E131: 0.1610809864 | F131: -17859.28204 | G131: 874.0762217 | H131: 70128.95625 | I131: 1036.844491 | J131: 0.01511737802 | K131: 194.8678102 | L131: -194.8678102 | M131: 80326.85765 | N131: -5899215.061 | O131: 9753903.792 | P131: 0.1917941008
A132: 0.00012 | B132: 0.1090409502 | C132: 0.02611745203 | D132: 0.02611745203 | E132: 0.1612758542 | F132: -17865.18125 | G132: 873.054227 | H132: 70138.71015 | I132: 1036.940708 | J132: 0.01508981972 | K132: 194.512575 | L132: -194.512575 | M132: 80333.6289 | N132: -5804988.285 | O132: 9820912.728 | P132: 0.1932358743
A133: 0.000121 | B133: 0.1088464376 | C133: 0.0263119646 | D133: 0.0263119646 | E133: 0.1614703668 | F133: -17870.98624 | G133: 872.0374433 | H133: 70148.53106 | I133: 1037.037585 | J133: 0.01506229847 | K133: 194.1578173 | L133: -194.1578173 | M133: 80340.35642 | N133: -5711059.329 | O133: 9887648.913 | P133: 0.1946750196
A134: 0.000122 | B134: 0.1086522798 | C134: 0.02650612242 | D134: 0.02650612242 | E134: 0.1616645246 | F134: -17876.6973 | G134: 871.0258638 | H134: 70158.41871 | I134: 1037.135118 | J134: 0.01503481391 | K134: 193.8035326 | L134: -193.8035326 | M134: 80347.04035 | N134: -5617427.66 | O134: 9954112.59 | P134: 0.1961115401
A135: 0.000123 | B135: 0.1084584763 | C135: 0.02669992595 | D135: 0.02669992595 | E135: 0.1618583282 | F135: -17882.31473 | G135: 870.0194816 | H135: 70168.37282 | I135: 1037.233305 | J135: 0.01500736569 | K135: 193.4497163 | L135: -193.4497163 | M135: 80353.68082 | N135: -5524092.75 | O135: 10020304.01 | P135: 0.1975454394
A136: 0.000124 | B136: 0.1082650265 | C136: 0.02689337567 | D136: 0.02689337567 | E136: 0.1620517779 | F136: -17887.83882 | G136: 869.01829 | H136: 70178.39313 | I136: 1037.332143 | J136: 0.01497995346 | K136: 193.0963638 | L136: -193.0963638 | M136: 80360.278 | N136: -5431054.075 | O136: 10086223.4 | P136: 0.1989767209
A137: 0.000125 | B137: 0.1080719302 | C137: 0.02708647203 | D137: 0.02708647203 | E137: 0.1622448742 | F137: -17893.26988 | G137: 868.0222821 | H137: 70188.47935 | I137: 1037.43163 | J137: 0.01495257687 | K137: 192.7434709 | L137: -192.7434709 | M137: 80366.83201 | N137: -5338311.116 | O137: 10151871.03 | P137: 0.200405388
A138: 0.000126 | B138: 0.1078791867 | C138: 0.0272792155 | D138: 0.0272792155 | E138: 0.1624376177 | F138: -17898.60819 | G138: 867.0314512 | H138: 70198.63122 | I138: 1037.531763 | J138: 0.01492523558 | K138: 192.3910331 | L138: -192.3910331 | M138: 80373.343 | N138: -5245863.361 | O138: 10217247.13 | P138: 0.2018314441
A139: 0.000127 | B139: 0.1076867957 | C139: 0.02747160653 | D139: 0.02747160653 | E139: 0.1626300087 | F139: -17903.85405 | G139: 866.0457903 | H139: 70208.84847 | I139: 1037.632539 | J139: 0.01489792928 | K139: 192.0390461 | L139: -192.0390461 | M139: 80379.81112 | N139: -5153710.3 | O139: 10282351.95 | P139: 0.2032548927
A140: 0.000128 | B140: 0.1074947566 | C140: 0.02766364558 | D140: 0.02766364558 | E140: 0.1628220478 | F140: -17909.00776 | G140: 865.0652927 | H140: 70219.13082 | I140: 1037.733955 | J140: 0.01487065762 | K140: =k0*EXP(-E/Rgas/TF)*J140 -> 191.6875057 | L140: -191.6875057 | M140: 80386.23651 | N140: =-K140*M140 + U*A*(I140-G140) -> -5061851.431 | O140: =-U*A*(G140-I140) -> 10347185.74 | P140: =(FAF-B140)/FAF -> 0.204675737
A141: 0.000129 | B141: =B140+L140*dV -> 0.1073030691 | C141: =FAF-B141 -> 0.02785533309 | D141: =FAF-B141 -> 0.02785533309 | E141: 0.1630137353 | F141: =F140+N140*dV -> -17914.06961 | G141: 864.0899516 | H141: =H140+O140*dV -> 70229.47801 | I141: =findTAir(H141,I140,FAir) -> 1037.836009 | J141: =B141/E141*CAF*TF/G141 -> 0.01484342029 | K141: 191.3364079 | L141: -191.3364079 | M141: 80392.61931 | N141: -4970286.253 | O141: 10411748.75 | P141: 0.2060939803
A142: 0.00013 | B142: 0.1071117327 | C142: 0.02804666949 | D142: 0.02804666949 | E142: 0.1632050717 | F142: -17919.0399 | G142: =findT(F142,G141,B142,C142,D142) -> 863.11976 | H142: 70239.88976 | I142: 1037.938698 | J142: 0.01481621697 | K142: 190.9857485 | L142: =-K142 -> -190.9857485 | M142: 80398.95967 | N142: -4879014.273 | O142: 10476041.21 | P142: 0.207509626
A143: 0.000131 | B143: 0.106920747 | C143: 0.02823765524 | D143: 0.02823765524 | E143: 0.1633960574 | F143: -17923.91891 | G143: 862.1547112 | H143: 70250.3658 | I143: 1038.042019 | J143: 0.01478904735 | K143: 190.6355234 | L143: -190.6355234 | M143: 80405.25772 | N143: -4788034.999 | O143: 10540063.39 | P143: 0.2089226773
A144: 0.000132 | B144: 0.1067301114 | C144: 0.02842829077 | D144: 0.02842829077 | E144: 0.163586693 | F144: -17928.70695 | G144: 861.1947983 | H144: 70260.90586 | I144: 1038.14597 | J144: 0.01476191113 | K144: 190.2857289 | L144: -190.2857289 | M144: 80411.51363 | N144: -4697347.947 | O144: 10603815.53 | P144: 0.2103331373
A145: 0.000133 | B145: 0.1065398257 | C145: 0.02861857649 | D145: 0.02861857649 | E145: 0.1637769787 | F145: -17933.40429 | G145: 860.2400144 | H145: 70271.50968 | I145: 1038.250548 | J145: 0.014734808 | K145: 189.9363609 | L145: -189.9363609 | M145: 80417.72753 | N145: -4606952.635 | O145: 10667297.88 | P145: 0.2117410093
A146: 0.000134 | B146: 0.1063498893 | C146: 0.02880851286 | D146: 0.02880851286 | E146: 0.1639669151 | F146: -17938.01125 | G146: 859.2903527 | H146: 70282.17697 | I146: 1038.35575 | J146: 0.01470773767 | K146: 189.5874157 | L146: -189.5874157 | M146: 80423.89956 | N146: -4516848.585 | O146: 10730510.7 | P146: 0.2131462964
A147: 0.000135 | B147: 0.1061603019 | C147: 0.02899810027 | D147: 0.02899810027 | E147: 0.1641565025 | F147: -17942.5281 | G147: 858.3458062 | H147: 70292.90748 | I147: 1038.461574 | J147: 0.01468069985 | K147: 189.2388896 | L147: -189.2388896 | M147: 80430.02987 | N147: -4427035.327 | O147: 10793454.22 | P147: 0.2145490018
A148: 0.000136 | B148: 0.105971063 | C148: 0.02918733916 | D148: 0.02918733916 | E148: =B148+C148+D148 -> 0.1643457414 | F148: -17946.95513 | G148: 857.4063682 | H148: 70303.70094 | I148: 1038.568016 | J148: 0.01465369425 | K148: 188.8907789 | L148: -188.8907789 | M148: =HtRxn(G148) -> 80436.11861 | N148: -4337512.39 | O148: 10856128.71 | P148: 0.2159491285
A149: 0.000137 | B149: 0.1057821723 | C149: 0.02937622994 | D149: 0.02937622994 | E149: 0.1645346321 | F149: -17951.29264 | G149: 856.4720316 | H149: 70314.55707 | I149: 1038.675075 | J149: 0.0146267206 | K149: 188.5430799 | L149: -188.5430799 | M149: 80442.16593 | N149: -4248279.31 | O149: 10918534.41 | P149: 0.2173466796
A150: 0.000138 | B150: 0.1055936292 | C150: 0.02956477302 | D150: 0.02956477302 | E150: 0.1647231752 | F150: -17955.54092 | G150: 855.5427896 | H150: 70325.4756 | I150: 1038.782747 | J150: 0.01459977861 | K150: 188.1957892 | L150: -188.1957892 | M150: 80448.17196 | N150: -4159335.626 | O150: 10980671.58 | P150: 0.2187416582
A151: 0.000139 | B151: 0.1054054334 | C151: 0.02975296881 | D151: 0.02975296881 | E151: 0.164911371 | F151: -17959.70026 | G151: 854.6186352 | H151: 70336.45627 | I151: 1038.891029 | J151: 0.01457286803 | K151: 187.8489032 | L151: -187.8489032 | M151: 80454.13686 | N151: -4070680.883 | O151: 11042540.48 | P151: 0.2201340673
A152: 0.00014 | B152: 0.1052175845 | C152: 0.02994081771 | D152: 0.02994081771 | E152: 0.1650992199 | F152: -17963.77094 | G152: 853.6995615 | H152: 70347.49881 | I152: 1038.99992 | J152: 0.01454598858 | K152: 187.5024185 | L152: -187.5024185 | M152: 80460.06077 | N152: -3982314.628 | O152: 11104141.36 | P152: 0.2215239099
A153: 0.000141 | B153: 0.1050300821 | C153: 0.03012832013 | D153: 0.03012832013 | E153: 0.1652867223 | F153: -17967.75325 | G153: 852.7855616 | H153: 70358.60296 | I153: 1039.109417 | J153: 0.01451914 | K153: 187.1563318 | L153: -187.1563318 | M153: 80465.94384 | N153: -3894236.411 | O153: 11165474.47 | P153: 0.2229111889
A154: 0.000142 | B154: 0.1048429257 | C154: 0.03031547646 | D154: 0.03031547646 | E154: 0.1654738787 | F154: -17971.64749 | G154: 851.8766285 | H154: 70369.76843 | I154: 1039.219516 | J154: 0.01449232204 | K154: 186.8106398 | L154: -186.8106398 | M154: 80471.78621 | N154: -3806445.787 | O154: 11226540.08 | P154: 0.2242959074
A155: 0.000143 | B155: 0.1046561151 | C155: 0.0305022871 | D155: 0.0305022871 | E155: 0.1656606893 | F155: -17975.45394 | G155: 850.9727552 | H155: 70380.99497 | I155: 1039.330215 | J155: 0.01446553445 | K155: 186.4653392 | L155: -186.4653392 | M155: 80477.58803 | N155: -3718942.316 | O155: 11287338.43 | P155: 0.2256780681
A156: 0.000144 | B156: 0.1044696498 | C156: 0.03068875244 | D156: 0.03068875244 | E156: 0.1658471546 | F156: -17979.17288 | G156: 850.0739347 | H156: 70392.28231 | I156: 1039.441512 | J156: 0.01443877698 | K156: 186.1204269 | L156: -186.1204269 | M156: 80483.34945 | N156: -3631725.558 | O156: 11347869.8 | P156: 0.2270576741
A157: 0.000145 | B157: 0.1042835293 | C157: 0.03087487287 | D157: 0.03087487287 | E157: 0.1660332751 | F157: -17982.8046 | G157: 849.18016 | H157: 70403.63018 | I157: 1039.553403 | J157: 0.01441204939 | K157: 185.7758998 | L157: -185.7758998 | M157: 80489.07061 | N157: -3544795.081 | O157: 11408134.44 | P157: 0.2284347282
A158: 0.000146 | B158: 0.1040977534 | C158: 0.03106064877 | D158: 0.03106064877 | E158: 0.166219051 | F158: -17986.3494 | G158: 848.2914242 | H158: 70415.03831 | I158: 1039.665887 | J158: 0.01438535144 | K158: 185.4317548 | L158: -185.4317548 | M158: 80494.75167 | N158: -3458150.453 | O158: 11468132.6 | P158: 0.2298092332
A159: 0.000147 | B159: 0.1039123217 | C159: 0.03124608052 | D159: 0.03124608052 | E159: 0.1664044827 | F159: -17989.80755 | G159: 847.4077201 | H159: 70426.50645 | I159: 1039.77896 | J159: 0.01435868291 | K159: 185.0879889 | L159: -185.0879889 | M159: 80500.39276 | N159: -3371791.246 | O159: 11527864.56 | P159: 0.2311811919
A160: 0.000148 | B160: 0.1037272337 | C160: 0.03143116851 | D160: 0.03143116851 | E160: 0.1665895707 | F160: -17993.17934 | G160: 846.5290407 | H160: 70438.03431 | I160: 1039.89262 | J160: 0.01433204357 | K160: 184.7445993 | L160: -184.7445993 | M160: 80505.99404 | N160: -3285717.037 | O160: 11587330.57 | P160: 0.2325506073
A161: 0.000149 | B161: 0.1035424891 | C161: 0.03161591311 | D161: 0.03161591311 | E161: 0.1667743153 | F161: -17996.46506 | G161: 845.6553789 | H161: 70449.62164 | I161: 1040.006864 | J161: 0.01430543319 | K161: 184.401583 | L161: -184.401583 | M161: 80511.55565 | N161: -3199927.405 | O161: 11646530.91 | P161: 0.233917482
A162: 0.00015 | B162: 0.1033580875 | C162: 0.03180031469 | D162: 0.03180031469 | E162: 0.1669587169 | F162: -17999.66499 | G162: 844.7867278 | H162: 70461.26817 | I162: 1040.121689 | J162: 0.01427885155 | K162: 184.0589373 | L162: -184.0589373 | M162: 80517.07775 | N162: -3114421.932 | O162: 11705465.83 | P162: 0.2352818188
A163: 0.000151 | B163: 0.1031740286 | C163: 0.03198437363 | D163: 0.03198437363 | E163: 0.1671427758 | F163: -18002.77941 | G163: 843.92308 | H163: 70472.97364 | I163: 1040.237093 | J163: 0.01425229845 | K163: 183.7166594 | L163: -183.7166594 | M163: 80522.56047 | N163: -3029200.205 | O163: 11764135.61 | P163: 0.2366436204
A164: 0.000152 | B164: 0.1029903119 | C164: 0.03216809029 | D164: 0.03216809029 | E164: 0.1673264925 | F164: -18005.80861 | G164: 843.0644286 | H164: 70484.73777 | I164: 1040.353073 | J164: 0.01422577367 | K164: 183.3747465 | L164: -183.3747465 | M164: 80528.00396 | N164: -2944261.811 | O164: 11822540.5 | P164: 0.2380028897
A165: 0.000153 | B165: 0.1028069372 | C165: 0.03235146504 | D165: 0.03235146504 | E165: 0.1675098672 | F165: -18008.75287 | G165: 842.2107664 | H165: 70496.56031 | I165: 1040.469627 | J165: 0.01419927701 | K165: 183.0331962 | L165: -183.0331962 | M165: 80533.40838 | N165: -2859606.342 | O165: 11880680.79 | P165: 0.2393596292
A166: 0.000154 | B166: 0.102623904 | C166: 0.03253449823 | D166: 0.03253449823 | E166: 0.1676929004 | F166: -18011.61248 | G166: 841.3620862 | H166: 70508.44099 | I166: 1040.586752 | J166: 0.01417280827 | K166: 182.6920057 | L166: -182.6920057 | M166: 80538.77387 | N166: -2775233.394 | O166: 11938556.74 | P166: 0.2407138417
A167: 0.000155 | B167: 0.102441212 | C167: 0.03271719024 | D167: 0.03271719024 | E167: 0.1678755924 | F167: -18014.38771 | G167: 840.5183809 | H167: 70520.37955 | I167: 1040.704445 | J167: 0.01414636726 | K167: 182.3511726 | L167: -182.3511726 | M167: 80544.10058 | N167: -2691142.564 | O167: 11996168.62 | P167: 0.2420655298
A168: 0.000156 | B168: 0.1022588608 | C168: 0.03289954141 | D168: 0.03289954141 | E168: 0.1680579436 | F168: -18017.07885 | G168: 839.6796432 | H168: 70532.37572 | I168: 1040.822703 | J168: 0.01411995377 | K168: 182.0106944 | L168: -182.0106944 | M168: 80549.38865 | N168: -2607333.451 | O168: 12053516.71 | P168: 0.2434146962
A169: 0.000157 | B169: 0.1020768501 | C169: 0.03308155211 | D169: 0.03308155211 | E169: 0.1682399543 | F169: -18019.68619 | G169: 838.845866 | H169: 70544.42924 | I169: 1040.941525 | J169: 0.01409356764 | K169: 181.6705688 | L169: -181.6705688 | M169: 80554.63824 | N169: -2523805.661 | O169: 12110601.28 | P169: 0.2447613435
A170: 0.000158 | B170: 0.1018951795 | C170: 0.03326322268 | D170: 0.03326322268 | E170: 0.1684216249 | F170: -18022.20999 | G170: 838.0170419 | H170: 70556.53984 | I170: 1041.060907 | J170: 0.01406720867 | K170: 181.3307933 | L170: -181.3307933 | M170: 80559.84948 | N170: -2440558.798 | O170: 12167422.61 | P170: 0.2461054743
A171: 0.000159 | B171: 0.1017138487 | C171: 0.03344455347 | D171: 0.03344455347 | E171: 0.1686029557 | F171: -18024.65055 | G171: 837.1931638 | H171: 70568.70726 | I171: 1041.180846 | J171: 0.01404087668 | K171: 180.9913656 | L171: -180.9913656 | M171: 80565.02254 | N171: -2357592.471 | O171: 12223980.98 | P171: 0.2474470911
A172: 0.00016 | B172: 0.1015328574 | C172: 0.03362554483 | D172: 0.03362554483 | E172: 0.168783947 | F172: -18027.00814 | G172: 836.3742243 | H172: 70580.93124 | I172: 1041.301341 | J172: 0.01401457151 | K172: 180.6522836 | L172: -180.6522836 | M172: 80570.15755 | N172: -2274906.292 | O172: 12280276.66 | P172: 0.2487861967
A173: 0.000161 | B173: =B172+L172*dV -> 0.1013522051 | C173: =FAF-B173 -> 0.03380619712 | D173: =FAF-B173 -> 0.03380619712 | E173: 0.1689645993 | F173: =F172+N172*dV -> -18029.28305 | G173: 835.5602162 | H173: =H172+O172*dV -> 70593.21152 | I173: 1041.422388 | J173: =B173/E173*CAF*TF/G173 -> 0.01398829298 | K173: 180.313545 | L173: -180.313545 | M173: 80575.25467 | N173: -2192499.875 | O173: 12336309.93 | P173: 0.2501227935
A174: 0.000162 | B174: 0.1011718915 | C174: 0.03398651066 | D174: 0.03398651066 | E174: 0.1691449129 | F174: -18031.47555 | G174: 834.7511321 | H174: 70605.54783 | I174: 1041.543985 | J174: 0.01396204093 | K174: 179.9751476 | L174: -179.9751476 | M174: 80580.31404 | N174: -2110372.835 | O174: 12392081.08 | P174: 0.251456884
A175: 0.000163 | B175: 0.1009919164 | C175: 0.03416648581 | D175: 0.03416648581 | E175: 0.169324888 | F175: -18033.58592 | G175: 833.9469646 | H175: 70617.93991 | I175: 1041.666129 | J175: 0.01393581519 | K175: 179.6370896 | L175: -179.6370896 | M175: 80585.33581 | N175: -2028524.792 | O175: 12447590.39 | P175: 0.2527884708
A176: 0.000164 | B176: 0.1008122793 | C176: 0.0343461229 | D176: 0.0343461229 | E176: 0.1695045251 | F176: -18035.61445 | G176: 833.1477065 | H176: 70630.3875 | I176: 1041.788818 | J176: 0.01390961561 | K176: 179.2993687 | L176: -179.2993687 | M176: 80590.32012 | N176: -1946955.367 | O176: 12502838.15 | P176: 0.2541175564
A177: 0.000165 | B177: 0.1006329799 | C177: 0.03452542227 | D177: 0.03452542227 | E177: 0.1696838245 | F177: -18037.5614 | G177: 832.3533502 | H177: 70642.89034 | I177: 1041.912049 | J177: 0.01388344204 | K177: 178.961983 | L177: -178.961983 | M177: 80595.26713 | N177: -1865664.183 | O177: 12557824.64 | P177: 0.2554441434
A178: 0.000166 | B178: 0.100454018 | C178: 0.03470438425 | D178: 0.03470438425 | E178: 0.1698627865 | F178: -18039.42707 | G178: 831.5638884 | H178: 70655.44816 | I178: 1042.035819 | J178: 0.01385729432 | K178: 178.6249306 | L178: -178.6249306 | M178: 80600.17699 | N178: -1784650.867 | O178: 12612550.15 | P178: 0.2567682341
A179: 0.000167 | B179: 0.100275393 | C179: 0.03488300918 | D179: 0.03488300918 | E179: 0.1700414114 | F179: -18041.21172 | G179: 830.7793137 | H179: 70668.06071 | I179: 1042.160126 | J179: 0.01383117232 | K179: 178.2882096 | L179: -178.2882096 | M179: 80605.04983 | N179: -1703915.045 | O179: 12667014.97 | P179: 0.258089831
A180: 0.000168 | B180: 0.1000971048 | C180: 0.03506129739 | D180: 0.03506129739 | E180: 0.1702196996 | F180: -18042.91563 | G180: 829.9996185 | H180: 70680.72773 | I180: 1042.284967 | J180: 0.01380507588 | K180: 177.9518182 | L180: -177.9518182 | M180: 80609.88581 | N180: -1623456.349 | O180: 12721219.4 | P180: 0.2594089366
A181: 0.000169 | B181: 0.09991915299 | C181: 0.03523924921 | D181: 0.03523924921 | E181: 0.1703976514 | F181: -18044.53909 | G181: 829.2247954 | H181: 70693.44895 | I181: 1042.41034 | J181: 0.01377900488 | K181: 177.6157547 | L181: -177.6157547 | M181: 80614.68508 | N181: -1543274.41 | O181: 12775163.72 | P181: 0.2607255534
A182: 0.00017 | B182: 0.09974153724 | C182: 0.03541686496 | D182: 0.03541686496 | E182: 0.1705752672 | F182: -18046.08236 | G182: 828.4548368 | H182: 70706.22411 | I182: 1042.536242 | J182: 0.01375295917 | K182: 177.2800173 | L182: -177.2800173 | M182: 80619.44777 | N182: -1463368.863 | O182: 12828848.23 | P182: 0.2620396837
A183: 0.000171 | B183: 0.09956425722 | C183: 0.03559414498 | D183: 0.03559414498 | E183: 0.1707525472 | F183: -18047.54573 | G183: 827.6897353 | H183: 70719.05296 | I183: 1042.66267 | J183: 0.01372693864 | K183: 176.9446043 | L183: -176.9446043 | M183: 80624.17405 | N183: -1383739.344 | O183: 12882273.23 | P183: 0.26335133
A184: 0.000172 | B184: 0.09938731262 | C184: 0.03577108959 | D184: 0.03577108959 | E184: 0.1709294918 | F184: -18048.92947 | G184: 826.9294831 | H184: 70731.93523 | I184: 1042.789622 | J184: 0.01370094315 | K184: 176.6095142 | L184: -176.6095142 | M184: 80628.86405 | N184: -1304385.491 | O184: 12935439.02 | P184: 0.2646604947
A185: 0.000173 | B185: 0.0992107031 | C185: 0.0359476991 | D185: 0.0359476991 | E185: 0.1711061013 | F185: -18050.23386 | G185: 826.1740728 | H185: 70744.87067 | I185: 1042.917095 | J185: 0.01367497258 | K185: 176.2747453 | L185: -176.2747453 | M185: 80633.51793 | N185: -1225306.945 | O185: 12988345.89 | P185: 0.2659671801
A186: 0.000174 | B186: 0.09903442836 | C186: 0.03612397385 | D186: 0.03612397385 | E186: 0.171282376 | F186: -18051.45916 | G186: 825.4234967 | H186: 70757.85902 | I186: 1043.045087 | J186: 0.01364902682 | K186: 175.9402962 | L186: -175.9402962 | M186: 80638.13583 | N186: -1146503.347 | O186: 13040994.16 | P186: 0.2672713887
A187: 0.000175 | B187: 0.09885848806 | C187: 0.03629991414 | D187: 0.03629991414 | E187: 0.1714583163 | F187: -18052.60567 | G187: 824.6777472 | H187: 70770.90001 | I187: 1043.173595 | J187: 0.01362310575 | K187: 175.6061654 | L187: -175.6061654 | M187: 80642.71789 | N187: -1067974.342 | O187: 13093384.11 | P187: 0.2685731227
A188: 0.000176 | B188: 0.0986828819 | C188: 0.03647552031 | D188: 0.03647552031 | E188: 0.1716339225 | F188: -18053.67364 | G188: 823.9368165 | H188: 70783.99339 | I188: 1043.302616 | J188: 0.01359720926 | K188: 175.2723514 | L188: -175.2723514 | M188: 80647.26426 | N188: -989719.5745 | O188: 13145516.06 | P188: 0.2698723846
A189: 0.000177 | B189: 0.09850760955 | C189: 0.03665079266 | D189: 0.03665079266 | E189: 0.1718091949 | F189: -18054.66336 | G189: 823.200697 | H189: 70797.13891 | I189: 1043.432148 | J189: 0.01357133724 | K189: 174.9388528 | L189: -174.9388528 | M189: 80651.7751 | N189: -911738.6918 | O189: 13197390.32 | P189: 0.2711691768
A190: 0.000178 | B190: 0.09833267069 | C190: 0.03682573151 | D190: 0.03682573151 | E190: 0.1719841337 | F190: -18055.5751 | G190: 822.4693809 | H190: 70810.3363 | I190: 1043.562188 | J190: 0.01354548959 | K190: 174.6056685 | L190: -174.6056685 | M190: 80656.25054 | N190: -834031.3427 | O190: 13249007.2 | P190: 0.2724635014
A191: 0.000179 | B191: 0.09815806502 | C191: 0.03700033718 | D191: 0.03700033718 | E191: 0.1721587394 | F191: -18056.40913 | G191: 821.7428604 | H191: 70823.58531 | I191: 1043.692735 | J191: 0.01351966622 | K191: 174.2727969 | L191: -174.2727969 | M191: 80660.69074 | N191: -756597.1777 | O191: 13300367 | P191: 0.2737553609
A192: 0.00018 | B192: 0.09798379223 | C192: 0.03717460998 | D192: 0.03717460998 | E192: 0.1723330122 | F192: -18057.16573 | G192: 821.0211279 | H192: 70836.88568 | I192: 1043.823784 | J192: 0.01349386702 | K192: 173.940237 | L192: -173.940237 | M192: 80665.09583 | N192: -679435.8486 | O192: 13351470.04 | P192: 0.2750447576
A193: 0.000181 | B193: 0.09780985199 | C193: 0.03734855021 | D193: 0.03734855021 | E193: 0.1725069524 | F193: -18057.84516 | G193: 820.3041753 | H193: 70850.23715 | I193: 1043.955334 | J193: 0.0134680919 | K193: 173.6079876 | L193: -173.6079876 | M193: 80669.46597 | N193: -602547.0089 | O193: 13402316.64 | P193: 0.2763316938
A194: 0.000182 | B194: 0.097636244 | C194: 0.0375221582 | D194: 0.0375221582 | E194: 0.1726805604 | F194: -18058.44771 | G194: 819.591995 | H194: 70863.63946 | I194: 1044.087382 | J194: 0.01344234078 | K194: 173.2760474 | L194: -173.2760474 | M194: 80673.8013 | N194: -525930.3132 | O194: 13452907.11 | P194: 0.2776161718
A195: 0.000183 | B195: 0.09746296795 | C195: 0.03769543425 | D195: 0.03769543425 | E195: 0.1728538365 | F195: -18058.97364 | G195: 818.884579 | H195: 70877.09237 | I195: 1044.219926 | J195: 0.01341661356 | K195: 172.9444155 | L195: -172.9444155 | M195: 80678.10197 | N195: -449585.4179 | O195: 13503241.77 | P195: 0.2788981938
A196: 0.000184 | B196: 0.09729002354 | C196: 0.03786837866 | D196: 0.03786837866 | E196: 0.1730267809 | F196: -18059.42323 | G196: 818.1819194 | H196: 70890.59561 | I196: 1044.352963 | J196: 0.01339091018 | K196: 172.6130906 | L196: -172.6130906 | M196: 80682.36812 | N196: -373511.9803 | O196: 13553320.94 | P196: 0.2801777621
A197: 0.000185 | B197: 0.09711741045 | C197: 0.03804099176 | D197: 0.03804099176 | E197: 0.173199394 | F197: -18059.79674 | G197: 817.4840083 | H197: 70904.14893 | I197: 1044.48649 | J197: 0.01336523054 | K197: 172.282072 | L197: -172.282072 | M197: 80686.59989 | N197: -297709.6594 | O197: 13603144.95 | P197: 0.2814548791
A198: 0.000186 | B198: 0.09694512838 | C198: 0.03821327383 | D198: 0.03821327383 | E198: 0.173371676 | F198: -18060.09445 | G198: 816.7908376 | H198: 70917.75208 | I198: 1044.620504 | J198: 0.01333957458 | K198: 171.9513584 | L198: -171.9513584 | M198: 80690.79743 | N198: -222178.115 | O198: 13652714.12 | P198: 0.282729547
A199: 0.000187 | B199: 0.09677317702 | C199: 0.03838522519 | D199: 0.03838522519 | E199: 0.1735436274 | F199: -18060.31663 | G199: 816.1023994 | H199: 70931.40479 | I199: 1044.755005 | J199: 0.01331394222 | K199: 171.6209492 | L199: -171.6209492 | M199: 80694.9609 | N199: -146917.0085 | O199: 13702028.77 | P199: 0.284001768
A200: 0.000188 | B200: 0.09660155607 | C200: 0.03855684613 | D200: 0.03855684613 | E200: 0.1737152483 | F200: -18060.46354 | G200: 815.4186857 | H200: 70945.10682 | I200: 1044.889988 | J200: 0.01328833339 | K200: 171.2908433 | L200: -171.2908433 | M200: 80699.09042 | N200: -71926.00214 | O200: 13751089.25 | P200: 0.2852715444
A201: 0.000189 | B201: 0.09643026523 | C201: 0.03872813698 | D201: 0.03872813698 | E201: 0.1738865392 | F201: -18060.53547 | G201: 814.7396884 | H201: 70958.85791 | I201: 1045.025451 | J201: 0.01326274804 | K201: 170.9610399 | L201: -170.9610399 | M201: 80703.18615 | N201: 2795.240642 | O201: 13799895.87 | P201: 0.2865388784
... 1811 more rows
